[Event "Late-Titled-Tuesday-Blitz-February-13-2024"]
[Site "Chess.com"]
[Date "2024.02.13"]
[Round "5"]
[White "trriinu"]
[Black "LogoCzar"]
[Result "1/2-1/2"]
[WhiteElo "2251"]
[BlackElo "2392"]
[TimeControl "180+1"]
[EndTime "14:54:12 PST"]
[Termination "Game drawn by repetition"]

1. e4 {[%clk 0:03:00]} 1... c5 {[%clk 0:02:12.9]} 2. Nf3 {[%clk 0:02:59.9]} 2...
d6 {[%clk 0:02:10.1]} 3. Bb5+ {[%clk 0:03:00.3]} 3... Nd7 {[%clk 0:02:10.1]} 4.
O-O {[%clk 0:03:00]} 4... Nf6 {[%clk 0:02:10.2]} 5. Re1 {[%clk 0:03:00.5]} 5...
e6 {[%clk 0:02:10.2]} 6. c3 {[%clk 0:03:01]} 6... Be7 {[%clk 0:02:10.2]} 7. d4
{[%clk 0:03:01.4]} 7... cxd4 {[%clk 0:02:10.6]} 8. cxd4 {[%clk 0:03:02.3]} 8...
O-O {[%clk 0:02:10.3]} 9. Nc3 {[%clk 0:03:02.7]} 9... a6 {[%clk 0:02:10.4]} 10.
Bf1 {[%clk 0:03:02.4]} 10... b5 {[%clk 0:02:10.4]} 11. e5 {[%clk 0:02:49.4]}
11... Nd5 {[%clk 0:02:08.2]} 12. Nxd5 {[%clk 0:02:45.8]} 12... exd5 {[%clk
0:02:09.1]} 13. e6 {[%clk 0:02:46.2]} 13... fxe6 {[%clk 0:02:07.4]} 14. Rxe6
{[%clk 0:02:46.2]} 14... Nf6 {[%clk 0:02:07.6]} 15. Re1 {[%clk 0:02:42.7]} 15...
Ne4 {[%clk 0:02:07.8]} 16. Bd3 {[%clk 0:02:42.6]} 16... Bg4 {[%clk 0:02:05.8]}
17. Bxe4 {[%clk 0:02:38.2]} 17... dxe4 {[%clk 0:02:05.8]} 18. Rxe4 {[%clk
0:02:38.3]} 18... Bxf3 {[%clk 0:02:03.7]} 19. gxf3 {[%clk 0:02:37.8]} 19... d5
{[%clk 0:02:04.1]} 20. Rg4 {[%clk 0:02:37.6]} 20... Bd6 {[%clk 0:02:02.2]} 21.
Bh6 {[%clk 0:02:33.1]} 21... Rf7 {[%clk 0:02:01.9]} 22. Kh1 {[%clk 0:02:28.9]}
22... Qf6 {[%clk 0:02:00.5]} 23. Qd3 {[%clk 0:02:20.7]} 23... Kh8 {[%clk
0:01:59.4]} 24. Be3 {[%clk 0:01:57.8]} 24... Qxf3+ {[%clk 0:01:58.6]} 25. Rg2
{[%clk 0:01:58.1]} 25... Raf8 {[%clk 0:01:55.8]} 26. Rg1 {[%clk 0:01:57]} 26...
Rf5 {[%clk 0:01:52.6]} 27. Qd1 {[%clk 0:01:41.8]} 27... Qh3 {[%clk 0:01:52.4]}
28. Qg4 {[%clk 0:01:33.2]} 28... Qxg4 {[%clk 0:01:46.8]} 29. Rxg4 {[%clk
0:01:34.1]} 29... g6 {[%clk 0:01:46.8]} 30. Rc1 {[%clk 0:01:29.5]} 30... Rh5
{[%clk 0:01:37.8]} 31. Rg2 {[%clk 0:01:28.5]} 31... Rf3 {[%clk 0:01:35.9]} 32.
Rc6 {[%clk 0:01:26.5]} 32... Bf4 {[%clk 0:01:33.9]} 33. Rxa6 {[%clk 0:01:04.9]}
33... Bxe3 {[%clk 0:01:32.1]} 34. fxe3 {[%clk 0:01:04.7]} 34... Rxe3 {[%clk
0:01:33]} 35. Rb6 {[%clk 0:00:54.1]} 35... Rd3 {[%clk 0:01:32.2]} 36. Rxb5
{[%clk 0:00:53.1]} 36... Rxd4 {[%clk 0:01:32.2]} 37. Rb7 {[%clk 0:00:42.2]}
37... Rd1+ {[%clk 0:01:31.4]} 38. Rg1 {[%clk 0:00:42.5]} 38... Rd2 {[%clk
0:01:31.6]} 39. Rg2 {[%clk 0:00:42.9]} 39... Rd1+ {[%clk 0:01:31.9]} 40. Rg1
{[%clk 0:00:43.3]} 40... Rd2 {[%clk 0:01:30.3]} 41. Rg2 {[%clk 0:00:43.5]} 41...
Rd1+ {[%clk 0:01:28.8]} 1/2-1/2

[Event "Late-Titled-Tuesday-Blitz-February-13-2024"]
[Site "Chess.com"]
[Date "2024.02.13"]
[Round "5"]
[White "nindjaxx8"]
[Black "Burgsvik"]
[Result "0-1"]
[WhiteElo "2551"]
[BlackElo "2324"]
[TimeControl "180+1"]
[EndTime "14:54:13 PST"]
[Termination "Burgsvik won by resignation"]

1. d4 {[%clk 0:02:58.2]} 1... c5 {[%clk 0:03:00.4]} 2. e3 {[%clk 0:02:56.6]}
2... e6 {[%clk 0:02:58.9]} 3. Nf3 {[%clk 0:02:54.2]} 3... f5 {[%clk 0:02:58.9]}
4. Be2 {[%clk 0:02:51.7]} 4... Nf6 {[%clk 0:02:58.4]} 5. O-O {[%clk 0:02:51.1]}
5... b6 {[%clk 0:02:58.6]} 6. b3 {[%clk 0:02:48.6]} 6... Bb7 {[%clk 0:02:58.5]}
7. Bb2 {[%clk 0:02:46]} 7... Be7 {[%clk 0:02:58.3]} 8. Nbd2 {[%clk 0:02:45.1]}
8... O-O {[%clk 0:02:58]} 9. dxc5 {[%clk 0:02:44.5]} 9... bxc5 {[%clk
0:02:55.6]} 10. c4 {[%clk 0:02:45.2]} 10... Be4 {[%clk 0:02:53.4]} 11. Qc1
{[%clk 0:02:41.9]} 11... Nc6 {[%clk 0:02:52.5]} 12. Rd1 {[%clk 0:02:40.1]} 12...
Qc7 {[%clk 0:02:51]} 13. h3 {[%clk 0:02:29.6]} 13... Rad8 {[%clk 0:02:49.5]} 14.
Bc3 {[%clk 0:02:23.1]} 14... d5 {[%clk 0:02:41.7]} 15. cxd5 {[%clk 0:02:22.2]}
15... exd5 {[%clk 0:02:41.7]} 16. Qb2 {[%clk 0:02:22]} 16... Bd6 {[%clk
0:02:18.8]} 17. Rac1 {[%clk 0:02:19.2]} 17... Qe7 {[%clk 0:02:17.7]} 18. Nxe4
{[%clk 0:02:14.6]} 18... fxe4 {[%clk 0:02:16.2]} 19. Ne1 {[%clk 0:02:02.3]}
19... d4 {[%clk 0:02:16]} 20. exd4 {[%clk 0:01:59.8]} 20... cxd4 {[%clk
0:02:15.9]} 21. Bxd4 {[%clk 0:01:23.5]} 21... Nxd4 {[%clk 0:02:14.6]} 22. Rxd4
{[%clk 0:01:24.1]} 22... Ba3 {[%clk 0:02:14.5]} 23. Bc4+ {[%clk 0:01:17.3]}
23... Kh8 {[%clk 0:02:12.2]} 24. Qc3 {[%clk 0:00:44.2]} 24... Rxd4 {[%clk
0:02:05.9]} 25. Rc2 {[%clk 0:00:42.9]} 25... Rfd8 {[%clk 0:02:01.2]} 26. Re2
{[%clk 0:00:41.5]} 26... Bb4 {[%clk 0:01:56.9]} 27. Qe3 {[%clk 0:00:41]} 27...
Rd1 {[%clk 0:01:49.4]} 28. Kh2 {[%clk 0:00:37.3]} 28... Qe5+ {[%clk 0:01:46.4]}
29. g3 {[%clk 0:00:37.1]} 29... Bc5 {[%clk 0:01:38.8]} 30. Nf3 {[%clk
0:00:20.1]} 30... Qa1 {[%clk 0:01:29.9]} 0-1

[Event "Late-Titled-Tuesday-Blitz-February-13-2024"]
[Site "Chess.com"]
[Date "2024.02.13"]
[Round "5"]
[White "aghasiyevkamal"]
[Black "KNVB"]
[Result "1-0"]
[WhiteElo "2668"]
[BlackElo "2848"]
[TimeControl "180+1"]
[EndTime "14:54:17 PST"]
[Termination "aghasiyevkamal won by checkmate"]

1. d4 {[%clk 0:02:54]} 1... e5 {[%clk 0:02:56]} 2. dxe5 {[%clk 0:02:50.4]} 2...
Nc6 {[%clk 0:02:56.3]} 3. Nf3 {[%clk 0:02:46.4]} 3... Qe7 {[%clk 0:02:56.2]} 4.
e4 {[%clk 0:02:43.9]} 4... Nxe5 {[%clk 0:02:56.3]} 5. Be2 {[%clk 0:02:40.1]}
5... Nf6 {[%clk 0:02:54.5]} 6. Nc3 {[%clk 0:02:39.2]} 6... d6 {[%clk 0:02:51.8]}
7. Bg5 {[%clk 0:02:38]} 7... c6 {[%clk 0:02:51.7]} 8. O-O {[%clk 0:02:37.2]}
8... h6 {[%clk 0:02:47.3]} 9. Bh4 {[%clk 0:02:27.8]} 9... Ng6 {[%clk 0:02:46.7]}
10. Bg3 {[%clk 0:02:25.4]} 10... Nh5 {[%clk 0:02:47]} 11. Nd4 {[%clk 0:02:10.8]}
11... Nxg3 {[%clk 0:02:46.1]} 12. hxg3 {[%clk 0:02:11.1]} 12... Qc7 {[%clk
0:02:32.8]} 13. Bg4 {[%clk 0:02:10.7]} 13... Be7 {[%clk 0:02:27.7]} 14. Bxc8
{[%clk 0:02:07.4]} 14... Rxc8 {[%clk 0:02:28.6]} 15. Nf5 {[%clk 0:02:08.1]}
15... O-O {[%clk 0:02:27.7]} 16. Qg4 {[%clk 0:02:07.9]} 16... Bf6 {[%clk
0:02:26]} 17. Rad1 {[%clk 0:02:06.9]} 17... Rcd8 {[%clk 0:02:26.2]} 18. Kh2
{[%clk 0:02:03.8]} 18... Ne5 {[%clk 0:02:04]} 19. Nxh6+ {[%clk 0:01:46.9]} 19...
Kh7 {[%clk 0:02:03.5]} 20. Qf5+ {[%clk 0:01:47.2]} 20... Kxh6 {[%clk 0:00:04.4]}
21. Rh1 {[%clk 0:01:44.4]} 21... Bh4 {[%clk 0:00:02.7]} 22. Kg1 {[%clk
0:01:40.8]} 22... g5 {[%clk 0:00:02.7]} 23. Qf6+ {[%clk 0:01:27.7]} 23... Ng6
{[%clk 0:00:02.7]} 24. gxh4 {[%clk 0:01:22]} 24... g4 {[%clk 0:00:02.4]} 25. h5
{[%clk 0:01:19.3]} 25... Qe7 {[%clk 0:00:02.6]} 26. hxg6# {[%clk 0:01:18.5]} 1-0

[Event "Late-Titled-Tuesday-Blitz-February-13-2024"]
[Site "Chess.com"]
[Date "2024.02.13"]
[Round "5"]
[White "SmirnovTimofey2000"]
[Black "igorknyazev"]
[Result "0-1"]
[WhiteElo "1974"]
[BlackElo "2188"]
[TimeControl "180+1"]
[EndTime "14:54:21 PST"]
[Termination "igorknyazev won by checkmate"]

1. d4 {[%clk 0:02:54.4]} 1... Nf6 {[%clk 0:02:58.6]} 2. Bf4 {[%clk 0:02:54.2]}
2... c5 {[%clk 0:02:56.5]} 3. e3 {[%clk 0:02:54.5]} 3... d5 {[%clk 0:02:54.4]}
4. c3 {[%clk 0:02:48.3]} 4... Qb6 {[%clk 0:02:52.1]} 5. Qb3 {[%clk 0:02:38.4]}
5... c4 {[%clk 0:02:46.3]} 6. Qc2 {[%clk 0:02:38.1]} 6... g6 {[%clk 0:02:45.5]}
7. Nd2 {[%clk 0:02:34.1]} 7... Bf5 {[%clk 0:02:45.7]} 8. Qc1 {[%clk 0:02:30]}
8... Bg7 {[%clk 0:02:45.1]} 9. Ngf3 {[%clk 0:02:27.5]} 9... Nc6 {[%clk
0:02:37.9]} 10. h3 {[%clk 0:02:27.3]} 10... O-O {[%clk 0:02:37.4]} 11. Ne5
{[%clk 0:02:24.8]} 11... Nxe5 {[%clk 0:02:26.8]} 12. Bxe5 {[%clk 0:02:25]} 12...
a5 {[%clk 0:02:22.7]} 13. a4 {[%clk 0:02:21.2]} 13... Qc6 {[%clk 0:02:19.5]} 14.
Nf3 {[%clk 0:02:17.6]} 14... Ne4 {[%clk 0:02:18.2]} 15. Bxg7 {[%clk 0:02:15.1]}
15... Kxg7 {[%clk 0:02:17.8]} 16. Ne5 {[%clk 0:02:07.1]} 16... Qb6 {[%clk
0:02:15.5]} 17. g4 {[%clk 0:01:47.6]} 17... Be6 {[%clk 0:02:14.5]} 18. Bg2
{[%clk 0:01:31.9]} 18... Nd6 {[%clk 0:02:14.1]} 19. O-O {[%clk 0:01:05.9]} 19...
f6 {[%clk 0:02:13.7]} 20. Nf3 {[%clk 0:01:03.4]} 20... Ra6 {[%clk 0:02:02.1]}
21. Nd2 {[%clk 0:01:02.3]} 21... Qc6 {[%clk 0:01:58.2]} 22. Qc2 {[%clk
0:00:50.5]} 22... Rb6 {[%clk 0:01:57.6]} 23. e4 {[%clk 0:00:46.5]} 23... f5
{[%clk 0:01:46.4]} 24. exd5 {[%clk 0:00:37.3]} 24... Bxd5 {[%clk 0:01:45.3]} 25.
Bxd5 {[%clk 0:00:26]} 25... Qxd5 {[%clk 0:01:46.2]} 26. f3 {[%clk 0:00:13.3]}
26... fxg4 {[%clk 0:01:39.2]} 27. hxg4 {[%clk 0:00:11.4]} 27... h5 {[%clk
0:01:29.8]} 28. gxh5 {[%clk 0:00:10.4]} 28... Qg5+ {[%clk 0:01:29.2]} 29. Kh1
{[%clk 0:00:07.9]} 29... Qxh5+ {[%clk 0:01:28.3]} 30. Kg1 {[%clk 0:00:08.4]}
30... Qg5+ {[%clk 0:01:27.2]} 31. Kh1 {[%clk 0:00:08.5]} 31... Rh8# {[%clk
0:01:26.6]} 0-1

[Event "Late-Titled-Tuesday-Blitz-February-13-2024"]
[Site "Chess.com"]
[Date "2024.02.13"]
[Round "5"]
[White "lluiss"]
[Black "The_Straightforward_Rook"]
[Result "0-1"]
[WhiteElo "2157"]
[BlackElo "2444"]
[TimeControl "180+1"]
[EndTime "14:54:23 PST"]
[Termination "The_Straightforward_Rook won by resignation"]

1. e4 {[%clk 0:02:43.4]} 1... c6 {[%clk 0:02:57.9]} 2. d4 {[%clk 0:02:42.8]}
2... d5 {[%clk 0:02:58.8]} 3. exd5 {[%clk 0:02:42.9]} 3... cxd5 {[%clk
0:02:59.7]} 4. Bd3 {[%clk 0:02:42.8]} 4... Nc6 {[%clk 0:03:00.3]} 5. c3 {[%clk
0:02:42.3]} 5... Qc7 {[%clk 0:03:00.8]} 6. h3 {[%clk 0:02:42.3]} 6... e5 {[%clk
0:03:01.1]} 7. dxe5 {[%clk 0:02:41.5]} 7... Nxe5 {[%clk 0:03:02]} 8. Nf3 {[%clk
0:02:41.8]} 8... Nxd3+ {[%clk 0:03:00.9]} 9. Qxd3 {[%clk 0:02:41.6]} 9... Nf6
{[%clk 0:03:01.6]} 10. O-O {[%clk 0:02:41.6]} 10... Be7 {[%clk 0:02:55]} 11. Bg5
{[%clk 0:02:41.1]} 11... Be6 {[%clk 0:02:54.8]} 12. Nd4 {[%clk 0:02:39.7]} 12...
O-O {[%clk 0:02:51.4]} 13. Re1 {[%clk 0:02:39.1]} 13... Ne4 {[%clk 0:02:49.6]}
14. Bxe7 {[%clk 0:02:31]} 14... Qxe7 {[%clk 0:02:50.5]} 15. f3 {[%clk
0:02:29.7]} 15... Nc5 {[%clk 0:02:47.4]} 16. Qb5 {[%clk 0:02:26.2]} 16... b6
{[%clk 0:02:43.7]} 17. Nd2 {[%clk 0:02:20]} 17... Qf6 {[%clk 0:02:38.8]} 18. Qe2
{[%clk 0:02:11.5]} 18... Rfe8 {[%clk 0:02:34.5]} 19. Qf2 {[%clk 0:02:11.2]}
19... h5 {[%clk 0:02:29.8]} 20. N2b3 {[%clk 0:02:08.3]} 20... Nd3 {[%clk
0:02:29.5]} 21. Qg3 {[%clk 0:02:00.7]} 21... Nxe1 {[%clk 0:02:28.7]} 22. Rxe1
{[%clk 0:02:00.7]} 22... Bd7 {[%clk 0:02:25.8]} 23. Rf1 {[%clk 0:01:52.4]} 23...
h4 {[%clk 0:02:24.8]} 24. Qc7 {[%clk 0:01:50.4]} 24... Be6 {[%clk 0:02:19.3]}
25. a4 {[%clk 0:01:43.2]} 25... Qg5 {[%clk 0:02:12.5]} 26. Kh1 {[%clk
0:01:31.5]} 26... Bf5 {[%clk 0:02:05]} 27. a5 {[%clk 0:01:23.9]} 27... bxa5
{[%clk 0:02:03.4]} 28. Nxa5 {[%clk 0:01:03.8]} 28... Bd3 {[%clk 0:01:52.9]} 29.
Rg1 {[%clk 0:00:55.7]} 29... Re7 {[%clk 0:01:49.1]} 30. Qc6 {[%clk 0:00:53.6]}
30... Rae8 {[%clk 0:01:47.2]} 31. Qd6 {[%clk 0:00:32.2]} 31... Re1 {[%clk
0:01:46.3]} 32. Rxe1 {[%clk 0:00:31.1]} 32... Rxe1+ {[%clk 0:01:47.2]} 33. Kh2
{[%clk 0:00:31.1]} 33... Bf1 {[%clk 0:01:33.7]} 34. Qd8+ {[%clk 0:00:09.5]}
34... Qxd8 {[%clk 0:01:32.8]} 0-1

[Event "Late-Titled-Tuesday-Blitz-February-13-2024"]
[Site "Chess.com"]
[Date "2024.02.13"]
[Round "5"]
[White "N_Mullodzhanov"]
[Black "HanSchut"]
[Result "1-0"]
[WhiteElo "2506"]
[BlackElo "2266"]
[TimeControl "180+1"]
[EndTime "14:54:25 PST"]
[Termination "N_Mullodzhanov won by resignation"]

1. e4 {[%clk 0:03:00.9]} 1... c5 {[%clk 0:02:59.8]} 2. c3 {[%clk 0:03:00.4]}
2... g6 {[%clk 0:02:59.4]} 3. d4 {[%clk 0:02:59.5]} 3... cxd4 {[%clk 0:03:00]}
4. cxd4 {[%clk 0:02:59.6]} 4... d5 {[%clk 0:02:58.7]} 5. e5 {[%clk 0:02:59.5]}
5... Nc6 {[%clk 0:02:57.8]} 6. Nc3 {[%clk 0:02:57.2]} 6... Nh6 {[%clk
0:02:56.6]} 7. Nf3 {[%clk 0:02:53.6]} 7... Bg4 {[%clk 0:02:55.9]} 8. Bb5 {[%clk
0:02:49]} 8... Rc8 {[%clk 0:02:51.4]} 9. h3 {[%clk 0:02:46.4]} 9... Bxf3 {[%clk
0:02:51.7]} 10. Qxf3 {[%clk 0:02:47.3]} 10... Nf5 {[%clk 0:02:52.3]} 11. Be3
{[%clk 0:02:37.1]} 11... Nxe3 {[%clk 0:02:44.8]} 12. fxe3 {[%clk 0:02:37]} 12...
Bh6 {[%clk 0:02:45.2]} 13. O-O {[%clk 0:02:32.4]} 13... O-O {[%clk 0:02:45.3]}
14. Nxd5 {[%clk 0:02:30.1]} 14... a6 {[%clk 0:02:25.2]} 15. Bxc6 {[%clk
0:02:25.4]} 15... Rxc6 {[%clk 0:02:26.1]} 16. Rac1 {[%clk 0:02:25]} 16... Rxc1
{[%clk 0:02:13.4]} 17. Rxc1 {[%clk 0:02:25.9]} 17... Kh8 {[%clk 0:02:04.3]} 18.
Kh2 {[%clk 0:02:16.2]} 18... e6 {[%clk 0:01:50.4]} 19. Nf4 {[%clk 0:02:10.5]}
19... Qb6 {[%clk 0:01:39.9]} 20. b3 {[%clk 0:02:05.2]} 20... Qb4 {[%clk
0:01:39.8]} 21. Rc7 {[%clk 0:01:56.9]} 21... b5 {[%clk 0:01:30.2]} 22. Ra7
{[%clk 0:01:49.6]} 22... Qa5 {[%clk 0:01:19.4]} 23. Qe2 {[%clk 0:01:36.1]} 23...
Qb6 {[%clk 0:01:08]} 24. Rd7 {[%clk 0:01:33.9]} 24... Qc6 {[%clk 0:00:59.8]} 25.
Rd6 {[%clk 0:01:30.6]} 25... Qc1 {[%clk 0:01:00.1]} 26. Qf2 {[%clk 0:01:24.7]}
26... Rc8 {[%clk 0:00:51.6]} 27. Rd7 {[%clk 0:01:14.7]} 27... Kg8 {[%clk
0:00:37.4]} 28. Nxe6 {[%clk 0:01:10.4]} 28... f5 {[%clk 0:00:19.3]} 29. exf6
{[%clk 0:01:10.1]} 29... Qxe3 {[%clk 0:00:16.4]} 30. f7+ {[%clk 0:01:09.4]}
30... Kh8 {[%clk 0:00:16.2]} 31. Qf6+ {[%clk 0:01:09.4]} 1-0

[Event "Late-Titled-Tuesday-Blitz-February-13-2024"]
[Site "Chess.com"]
[Date "2024.02.13"]
[Round "5"]
[White "ritanovikova"]
[Black "Canal_Showdrez"]
[Result "1-0"]
[WhiteElo "2221"]
[BlackElo "2060"]
[TimeControl "180+1"]
[EndTime "14:54:32 PST"]
[Termination "ritanovikova won by resignation"]

1. e4 {[%clk 0:02:58.1]} 1... c5 {[%clk 0:02:57.6]} 2. Nc3 {[%clk 0:02:58.4]}
2... Nc6 {[%clk 0:02:57.8]} 3. d3 {[%clk 0:02:59.3]} 3... d6 {[%clk 0:02:56.9]}
4. Be3 {[%clk 0:02:59.8]} 4... e5 {[%clk 0:02:57.2]} 5. Qd2 {[%clk 0:03:00.3]}
5... Nd4 {[%clk 0:02:57.3]} 6. Nd1 {[%clk 0:03:00.1]} 6... Ne7 {[%clk 0:02:57]}
7. c3 {[%clk 0:03:00.4]} 7... Ne6 {[%clk 0:02:57]} 8. g3 {[%clk 0:02:58.8]} 8...
f5 {[%clk 0:02:56.8]} 9. Bg2 {[%clk 0:02:56.9]} 9... h6 {[%clk 0:02:52.6]} 10.
f4 {[%clk 0:02:44.9]} 10... fxe4 {[%clk 0:02:42.6]} 11. dxe4 {[%clk 0:02:43.8]}
11... exf4 {[%clk 0:02:37.9]} 12. gxf4 {[%clk 0:02:42.3]} 12... Nc6 {[%clk
0:02:35.3]} 13. Nf2 {[%clk 0:02:41.2]} 13... Bd7 {[%clk 0:02:30.9]} 14. O-O-O
{[%clk 0:02:40.6]} 14... Qa5 {[%clk 0:02:30.9]} 15. Kb1 {[%clk 0:02:40.7]} 15...
Be7 {[%clk 0:02:28.7]} 16. f5 {[%clk 0:02:33.2]} 16... Nc7 {[%clk 0:02:28.5]}
17. Ne2 {[%clk 0:02:30.3]} 17... Ne5 {[%clk 0:02:28.1]} 18. Nf4 {[%clk 0:02:28]}
18... O-O-O {[%clk 0:02:16.8]} 19. Nd5 {[%clk 0:02:08.1]} 19... Nxd5 {[%clk
0:02:13.5]} 20. Qxd5 {[%clk 0:02:09]} 20... Bc6 {[%clk 0:02:08.3]} 21. Qb3
{[%clk 0:02:08.1]} 21... Ba4 {[%clk 0:01:58.8]} 22. Qe6+ {[%clk 0:02:03.4]}
22... Bd7 {[%clk 0:01:57.9]} 23. Qxe7 {[%clk 0:02:02.8]} 23... Nc4 {[%clk
0:01:51.7]} 24. Bc1 {[%clk 0:01:55.1]} 24... Rhe8 {[%clk 0:01:42.1]} 25. Qf7
{[%clk 0:01:53.9]} 25... Ne5 {[%clk 0:01:38]} 26. Qb3 {[%clk 0:01:48.7]} 26...
Ba4 {[%clk 0:01:36.9]} 27. Qd5 {[%clk 0:01:35.3]} 27... Bxd1 {[%clk 0:01:33.8]}
28. Rxd1 {[%clk 0:01:36.2]} 28... Qa6 {[%clk 0:01:25.1]} 29. Nd3 {[%clk
0:01:29.6]} 29... Nc4 {[%clk 0:01:09.6]} 30. Nf4 {[%clk 0:01:12.7]} 30... Re5
{[%clk 0:01:07.5]} 31. Qd3 {[%clk 0:01:10.9]} 31... b5 {[%clk 0:00:59.6]} 32.
Ne6 {[%clk 0:01:10.3]} 32... Re8 {[%clk 0:00:56.2]} 33. b3 {[%clk 0:01:09]}
33... R5xe6 {[%clk 0:00:37.6]} 34. fxe6 {[%clk 0:01:07.6]} 34... Rxe6 {[%clk
0:00:36.2]} 35. Bh3 {[%clk 0:01:04.5]} 1-0

[Event "Late-Titled-Tuesday-Blitz-February-13-2024"]
[Site "Chess.com"]
[Date "2024.02.13"]
[Round "5"]
[White "AlexPapasimakopoulos"]
[Black "ChristopherYoo"]
[Result "0-1"]
[WhiteElo "2779"]
[BlackElo "2977"]
[TimeControl "180+1"]
[EndTime "14:54:34 PST"]
[Termination "ChristopherYoo won by resignation"]

1. d4 {[%clk 0:03:00.9]} 1... Nf6 {[%clk 0:02:54.1]} 2. c4 {[%clk 0:02:59.7]}
2... e6 {[%clk 0:02:53.8]} 3. Nc3 {[%clk 0:02:59.8]} 3... Bb4 {[%clk 0:02:53.6]}
4. Qc2 {[%clk 0:03:00.2]} 4... d5 {[%clk 0:02:52.7]} 5. cxd5 {[%clk 0:03:00.3]}
5... exd5 {[%clk 0:02:53.6]} 6. Bg5 {[%clk 0:02:59.5]} 6... h6 {[%clk
0:02:51.2]} 7. Bxf6 {[%clk 0:02:59.8]} 7... Qxf6 {[%clk 0:02:52.1]} 8. e3 {[%clk
0:03:00.4]} 8... Bf5 {[%clk 0:02:12.5]} 9. Qb3 {[%clk 0:02:56.1]} 9... c5 {[%clk
0:02:11.6]} 10. Nf3 {[%clk 0:02:34.1]} 10... Nc6 {[%clk 0:02:09.7]} 11. a3
{[%clk 0:02:26.9]} 11... c4 {[%clk 0:02:03]} 12. Qa4 {[%clk 0:02:26.7]} 12...
Bxc3+ {[%clk 0:02:01.1]} 13. bxc3 {[%clk 0:02:27.6]} 13... a6 {[%clk 0:01:50.4]}
14. Be2 {[%clk 0:02:16.8]} 14... b5 {[%clk 0:01:49.2]} 15. Qd1 {[%clk
0:02:17.3]} 15... O-O {[%clk 0:01:49.6]} 16. O-O {[%clk 0:02:17.7]} 16... a5
{[%clk 0:01:41.5]} 17. Qd2 {[%clk 0:02:06.6]} 17... Rfb8 {[%clk 0:01:37.2]} 18.
h3 {[%clk 0:02:00.2]} 18... Qd6 {[%clk 0:01:34.1]} 19. Rfc1 {[%clk 0:01:53.5]}
19... b4 {[%clk 0:01:31.2]} 20. axb4 {[%clk 0:01:53.8]} 20... axb4 {[%clk
0:01:29.9]} 21. Rxa8 {[%clk 0:01:54.5]} 21... Rxa8 {[%clk 0:01:30.5]} 22. cxb4
{[%clk 0:01:55]} 22... Qxb4 {[%clk 0:01:30.1]} 23. Qxb4 {[%clk 0:01:43.6]} 23...
Nxb4 {[%clk 0:01:31]} 24. Ne1 {[%clk 0:01:32.2]} 24... Ra3 {[%clk 0:01:24.7]}
25. Kf1 {[%clk 0:01:25]} 25... c3 {[%clk 0:01:16.9]} 26. g4 {[%clk 0:01:03.6]}
26... Bg6 {[%clk 0:01:12.1]} 27. f4 {[%clk 0:00:41.7]} 27... Be4 {[%clk
0:01:11.2]} 28. Bf3 {[%clk 0:00:42.2]} 28... Na2 {[%clk 0:00:52.3]} 29. Ra1
{[%clk 0:00:35.5]} 29... Bxf3 {[%clk 0:00:51.8]} 30. Nc2 {[%clk 0:00:28.4]}
30... Ra4 {[%clk 0:00:51.2]} 0-1

[Event "Late-Titled-Tuesday-Blitz-February-13-2024"]
[Site "Chess.com"]
[Date "2024.02.13"]
[Round "5"]
[White "N_I_Chess"]
[Black "cristianserban1"]
[Result "1-0"]
[WhiteElo "2293"]
[BlackElo "2489"]
[TimeControl "180+1"]
[EndTime "14:54:37 PST"]
[Termination "N_I_Chess won on time"]

1. d4 {[%clk 0:03:00.9]} 1... g6 {[%clk 0:03:00.1]} 2. c4 {[%clk 0:03:00.4]}
2... Bg7 {[%clk 0:03:00.4]} 3. Nc3 {[%clk 0:03:01.1]} 3... d6 {[%clk 0:03:00.8]}
4. e4 {[%clk 0:03:01]} 4... Nc6 {[%clk 0:03:00]} 5. d5 {[%clk 0:02:34.3]} 5...
Nd4 {[%clk 0:03:00]} 6. Be3 {[%clk 0:02:24.8]} 6... c5 {[%clk 0:02:58.2]} 7. h3
{[%clk 0:02:11.2]} 7... Qa5 {[%clk 0:02:51.4]} 8. Ne2 {[%clk 0:01:58]} 8... Nxe2
{[%clk 0:02:48.1]} 9. Bxe2 {[%clk 0:01:58.9]} 9... Nf6 {[%clk 0:02:21.9]} 10.
O-O {[%clk 0:01:56]} 10... O-O {[%clk 0:02:22.3]} 11. Qc2 {[%clk 0:01:52.8]}
11... a6 {[%clk 0:02:20.4]} 12. a4 {[%clk 0:01:49.3]} 12... Nd7 {[%clk
0:02:11.7]} 13. f4 {[%clk 0:01:45.2]} 13... Bd4 {[%clk 0:02:04.6]} 14. Qd3
{[%clk 0:01:41.9]} 14... Qb6 {[%clk 0:01:57.3]} 15. Rfb1 {[%clk 0:01:33.6]}
15... e5 {[%clk 0:01:52.4]} 16. dxe6 {[%clk 0:01:30.6]} 16... Ne5 {[%clk
0:01:53.3]} 17. fxe5 {[%clk 0:01:22.3]} 17... dxe5 {[%clk 0:01:54.2]} 18. e7
{[%clk 0:01:17.2]} 18... Re8 {[%clk 0:01:54.3]} 19. Nd5 {[%clk 0:01:15.3]} 19...
Qd6 {[%clk 0:01:54.7]} 20. Rf1 {[%clk 0:01:12.7]} 20... f5 {[%clk 0:01:54.1]}
21. Bxd4 {[%clk 0:01:09.1]} 21... cxd4 {[%clk 0:01:54.1]} 22. exf5 {[%clk
0:01:07.8]} 22... Bxf5 {[%clk 0:01:55]} 23. Rxf5 {[%clk 0:01:07.3]} 23... gxf5
{[%clk 0:01:55.3]} 24. Qxf5 {[%clk 0:01:08.2]} 24... Kg7 {[%clk 0:01:55]} 25.
Bd3 {[%clk 0:01:03.8]} 1-0